Cogmind - Beta 15 @@@ ROGUE MODE // 2025.06.22 @ 15:04:55 Player: Triffids Result: Self-destructed Performance ------------- Evolutions (1) 500 Regions Visited (2) 400 Robots Destroyed (8) 40 Value Destroyed (293) 293 Prototype IDs (0) 0 Alien Tech Used (0) 0 Bonus (0) 0 TOTAL SCORE: 1233 Bonus ------- None Cogmind --------- Core Integrity 362/400 Matter 270/300 Energy 250/250 System Corruption 0% Temperature Cool (0) Movement Walking (120) Location -9/Materials Parts ------- > --- POWER (1) -------- Ion Engine > --- PROPULSION (2) --- Aluminum Leg Aluminum Leg > --- UTILITY (4) ------ Signal Interpreter Reactive Plating > --- WEAPON (2) ------- Beam Rifle Mining Laser > --- INVENTORY (5) ---- Light Nuclear Core Aluminum Leg Aluminum Leg Reactive Plating Assault Rifle Peak State ------------ > --- POWER ------------ Ion Engine > --- PROPULSION ------- Aluminum Leg Aluminum Leg > --- UTILITY ---------- Sensor Array Signal Interpreter Reactive Plating > --- WEAPON ----------- Assault Rifle Light Assault Rifle > --- INVENTORY -------- Light Nuclear Core Aluminum Leg Aluminum Leg Light Assault Rifle Mining Laser [Rating: 10] Favorites ----------- Power Ion Engine Engine Ion Engine Propulsion Aluminum Leg Leg Aluminum Leg Utility Signal Interpreter Device Sensor Array Storage Small Storage Unit Processor Signal Interpreter Protection Reactive Plating Weapon Assault Rifle Energy Gun Beam Rifle Ballistic Gun Assault Rifle Special Weapon Mining Laser Build | -11 -10 -9 ------- Run | Yrd Mat Mat Slots Evolved 2 | . . 2 Power . | . . . Propulsion . | . . . Utility 2 | . . 2 Weapon . | . . . Parts Attached 12 | 7 3 2 Power 1 | 1 . . Engine 1 | 1 . . Core . | . . . Reactor . | . . . Propulsion 2 | 2 . . Treads . | . . . Leg 2 | 2 . . Wheel . | . . . Hover . | . . . Flight . | . . . Utility 5 | 2 2 1 Device 2 | 1 1 . Storage 1 | 1 . . Processor 1 | . 1 . Hackware . | . . . Protection 1 | . . 1 Artifact . | . . . Weapon 4 | 2 1 1 Energy Gun 1 | . . 1 Energy Cannon . | . . . Ballistic Gun 2 | 2 . . Ballistic Cannon . | . . . Launcher . | . . . Special Weapon 1 | . 1 . Impact Weapon . | . . . Slashing Weapon . | . . . Piercing Weapon . | . . . Special Melee Weapon . | . . . Unidentified Prototypes . | . . . Parts Lost 1 | . . 1 Power . | . . . Propulsion . | . . . Utility 1 | . . 1 Weapon . | . . . Highest Loss Streak 1 | . . 1 To Critical Strikes . | . . . Average Backups 4 | 2 4 5 Power . | . 1 1 Propulsion 1 | . . 2 Utility . | . . . Weapon 1 | 1 2 1 Tool/Special . | . . . Unused Backups 7 | . 2 5 Power 2 | . 1 1 Propulsion 2 | . . 2 Utility 2 | . 1 1 Weapon 1 | . . 1 Tool/Special . | . . . Average Slot Usage (%) 89 | . 100 79 Engine 12 | . 14 11 Leg 25 | . 28 22 Device 8 | . 14 3 Processor 11 | . 12 11 Protection 5 | . . 10 Energy Gun 3 | . . 7 Ballistic Gun 20 | . 26 13 Special Weapon 1 | . 1 1 Peak Build Rating 10 | 7 7 10 Average Rating 8 | 4 7 9 On Entrance 4 | . 7 7 Naked Turns . | . . . Heaviest Build 20 | 14 14 20 Greatest Support 20 | 20 20 20 Greatest Overweight (x) 1 | 1 . . Average Overweight (x) . | . . . Largest Inventory Capacity 8 | 8 8 5 Average Capacity 5 | 7 5 5 Most Carried 5 | 5 5 5 Average Carried 4 | 2 4 4 Final Capacity 8 | 8 5 5 Final Carried 5 | 3 5 5 Class Distribution -------------------- 100% | Mutant Dominant Class ---------------- Mutant | -10/Materials Mutant | -9/Materials Resources | -11 -10 -9 ----------- Run | Yrd Mat Mat Matter Collected 451 | 178 153 120 Remotely . | . . . Salvage Created 328 | 17 153 158 Parts 17 | 5 9 3 Haulers Intercepted . | . . . Recyclers Shooed . | . . . Parts Field Recycled . | . . . Retrieved Matter . | . . . Parts Self-Destructed . | . . . Prevented . | . . . Kills | -11 -10 -9 ------- Run | Yrd Mat Mat Combat Hostiles Destroyed 6 | . 3 3 Guns 5 | . 3 2 Classes Destroyed 4 | 1 2 1 Tunneler 1 | 1 . . Watcher 1 | . 1 . Grunt 3 | . 3 . Sentry 3 | . . 3 Best Kill Streak 2 | 1 2 2 Combat Bots Only 2 | . 2 2 Max Kills in Single Turn 1 | 1 1 1 Gunslinging . | . . . Exploded . | . . . Melee . | . . . Uniques/NPCs Destroyed . | . . . Combat | -11 -10 -9 -------- Run | Yrd Mat Mat Hostile Shots Fired 48 | . 14 34 Missed 17 | . 3 14 Hits 31 | . 11 20 Projectile 31 | . 11 20 Critical Strikes 2 | . . 2 Damage Taken 407 | . 139 268 Core 83 | . 45 38 Absorbed by Shields . | . . . Ignored by Resistances 34 | . . 34 Core Remaining (%) 91 | 100 82 . Volleys Fired 45 | 2 16 27 Largest 2 | 2 2 2 Hottest 100 | 40 100 100 Shots Fired 79 | 4 28 47 Gun 68 | 4 24 40 Cannon . | . . . Launcher . | . . . Special 11 | . 4 7 Kinetic 58 | 4 24 30 Thermal 21 | . 4 17 Explosive . | . . . Electromagnetic . | . . . Robot Hit Streak 10 | 1 10 8 Robot Miss Streak 3 | 1 1 3 Penetration Max . | . . . Secondary Targets 1 | . . 1 Max Gunslinging Chain 1 | . . 1 Shots Hit Robots 46 | 2 18 26 Core Hits 17 | 2 8 7 Critical Kills . | . . . Critical Parts Destroyed . | . . . Critical Strikes 1 | . . 1 Burn 1 | . . 1 Melee Attacks . | . . . Impact . | . . . Slashing . | . . . Piercing . | . . . Sneak Attacks . | . . . Combat Hostiles . | . . . Follow-up Attacks . | . . . Damage Inflicted 513 | 17 190 306 Guns 513 | 17 190 306 Cannons . | . . . Explosions . | . . . Melee . | . . . Ramming . | . . . Kinetic 397 | 17 190 190 Thermal 116 | . . 116 Explosive . | . . . Electromagnetic . | . . . Impact . | . . . Slashing . | . . . Piercing . | . . . Highest Corruption 1 | . 1 . Average Corruption 1 | . 1 . Corruption Purged . | . . . Corruption Blocked . | . . . Effects 1 | . 1 . Heat Flow Errors 1 | . 1 . Overload Shots . | . . . Overflow Damage . | . . . Projectiles . | . . . Explosions . | . . . Melee . | . . . Knockbacks . | . . . Impact . | . . . Kinetic . | . . . Secondary . | . . . Self-Inflicted Damage . | . . . Shots . | . . . Rammed . | . . . Targets Rammed . | . . . Kicked . | . . . Crushed . | . . . Highest Temperature 264 | . 108 264 Average Temperature 64 | . 33 75 Received Heat Transfer 204 | . 78 126 Siege Activations . | . . . Martial Activations . | . . . Shielding Activations . | . . . Robots Disrupted . | . . . Combat Hostiles . | . . . Robots Corrupted . | . . . Combat Hostiles . | . . . Parts Fried . | . . . Impact Corruptions . | . . . Robots Melted 1 | . . 1 Combat Hostiles 1 | . . 1 Parts Melted 3 | . . 3 Heat Transferred 370 | . . 370 Parts Sabotaged . | . . . Parts Stolen . | . . . Parts Stripped . | . . . Power Chain Reactions . | . . . Alert | -11 -10 -9 ------- Run | Yrd Mat Mat Maximum Alert Level . | . . . Low Security (%) 100 | 100 100 100 Level 1 . | . . . Level 2 . | . . . Level 3 . | . . . Level 4 . | . . . Level 5 . | . . . High Security . | . . . Max Security . | . . . Peak Influence 71 | 5 60 71 Initial . | . . . Average 18 | . 14 26 Influence Increases 217 | 5 102 110 Destroy 0b10 Robot/C 120 | . 60 60 Destroy 0b10 Robot/NC 10 | 5 5 . Destroy Leader 52 | . 22 30 Disable Machine 30 | . 15 15 Destroy Structure 5 | . . 5 Influence Decreases 217 | 5 102 110 Time Decay 217 | 5 102 110 Squads Dispatched 2 | . 1 1 Investigation 1 | . . 1 Extermination . | . . . Reinforcement 1 | . 1 . Assault . | . . . Garrison . | . . . Intercept . | . . . Searches Triggered . | . . . Construction Impeded . | . . . Haulers Reinforced . | . . . Active Scanning Responses . | . . . Cargo Convoy Interrupts . | . . . Stealth | -11 -10 -9 --------- Run | Yrd Mat Mat Distress Signals 1 | . . 1 Communications Jammed . | . . . Distress Signals . | . . . Times Spotted 8 | . 4 4 Peak Tracking Total 4 | . 2 4 Tactical Retreats . | . . . Traps | -11 -10 -9 ------- Run | Yrd Mat Mat Traps Triggered 2 | . 1 1 Indirectly . | . . . Trap Hack Attempts . | . . . Triggered . | . . . Disarmed . | . . . Reprogrammed . | . . . Reused . | . . . Traps Extracted . | . . . Installed . | . . . Triggered . | . . . Machines | -11 -10 -9 ---------- Run | Yrd Mat Mat Machines Disabled 2 | . 1 1 Max in Single Turn 1 | . 1 1 Machines Repaired . | . . . Machines Dismantled . | . . . Machines Sabotaged . | . . . Overloaded Fab Kills . | . . . Hacking | -11 -10 -9 --------- Run | Yrd Mat Mat Machines Accessed . | . . . Terminals . | . . . Fabricators . | . . . Repair Stations . | . . . Recycling Units . | . . . Scanalyzers . | . . . Garrison Access . | . . . Total Hacks . | . . . Successful . | . . . Failed . | . . . Catastrophic . | . . . Database Lockouts . | . . . Manual . | . . . Terminals . | . . . Fabricators . | . . . Repair Stations . | . . . Recycling Units . | . . . Scanalyzers . | . . . Garrison Access . | . . . Terminal Hacks . | . . . Fabricator Hacks . | . . . Repair Station Hacks . | . . . Recycling Unit Hacks . | . . . Scanalyzer . | . . . Garrison Access Hacks . | . . . Unauthorized Hacks . | . . . Terminals . | . . . Fabricators . | . . . Repair Stations . | . . . Recycling Units . | . . . Scanalyzers . | . . . Garrison Access . | . . . Data Cores Recovered . | . . . Used . | . . . Hacking Detections . | . . . Full Trace Events . | . . . Feedback Events . | . . . Feedback Blocked . | . . . Robot Schematics Acquired . | . . . Robots Built . | . . . Authchips . | . . . Time . | . . . Total Robot Build Rating . | . . . Part Schematics Acquired . | . . . Parts Built . | . . . Authchips . | . . . Time . | . . . Total Part Build Rating . | . . . Parts Repaired . | . . . Time . | . . . Parts Recycled . | . . . Recycled Matter . | . . . Retrieved Matter . | . . . Retrieved Components . | . . . Parts Scanalyzed . | . . . Part Schematics Acquired . | . . . Parts Damaged . | . . . Bothacking | -11 -10 -9 ------------ Run | Yrd Mat Mat Used RIF Installer . | . . . Robots Hacked . | . . . Non-combat . | . . . Combat . | . . . Robot Hacks Applied . | . . . Relay Couplers Released . | . . . Fabnet Peak Effective % . | . . . Robots Rewired . | . . . Allies Hacked . | . . . Hacks Repelled . | . . . Allies | -11 -10 -9 -------- Run | Yrd Mat Mat Total Allies . | . . . Largest Group . | . . . Highest-Rated Group . | . . . Highest-Rated Ally . | . . . Total Orders . | . . . Ally Attacks . | . . . Total Damage . | . . . Kills . | . . . Allies Corrupted . | . . . Allies Melted . | . . . Intel | -11 -10 -9 ------- Run | Yrd Mat Mat Active Infowar (turns) 394 | 2 313 79 Sensors 360 | . 281 79 Seismic 34 | 2 32 . Robot Analysis Total . | . . . Derelict Logs Recovered . | . . . Drone Launches . | . . . Drone Recoveries . | . . . Exploration | -11 -10 -9 ------------- Run | Yrd Mat Mat Turns Passed 677 | 60 316 301 Spaces Moved 392 | 41 180 171 Core 17 | 17 . . Treads . | . . . Legs 375 | 24 180 171 Wheels . | . . . Hover . | . . . Flight . | . . . Fastest Speed 50 | 50 120 120 Average Speed 117 | 92 120 120 Slowest Speed 120 | 120 120 120 Overloaded Moves . | . . . Propulsion Burnouts . | . . . Robots Hopped . | . . . Potential Cave-ins . | . . . Cave-ins Triggered . | . . . Exploration Rate (%) 19 | 5 38 14 Regions Visited 2 Branch Regions . Pre-discovered Areas . | . . . Known Exits Taken 1 | . 1 . Unknown Exits Taken 1 | 1 . . Scrap Searched . | . . . Spaces Dug 4 | . . 4 Terrain Destroyed 4 | . . 4 Melee . | . . . Projectile 4 | . . 4 AOE . | . . . Terrain Rammed . | . . . Walls Destroyed . | . . . Machines Disabled . | . . . Actions | -11 -10 -9 --------- Run | Yrd Mat Mat Total 511 | 59 247 205 Wait 39 | 1 38 . Move 390 | 40 179 171 Hop . | . . . Pick Up 15 | 8 6 1 Fast Attach 4 | 3 . 1 Attach 4 | 4 . . Detach . | . . . Swap 8 | . 4 4 Drop 6 | 1 4 1 Fire 45 | 2 16 27 Melee . | . . . Ram . | . . . Kick . | . . . Crush . | . . . Escape Stasis . | . . . Rewire . | . . . Trap . | . . . Miscellaneous . | . . . Route ------- -11/Scrapyard -10/Materials -9/Materials (discovered 1 exit: *Min) History --------- Turn | Location | Event 9 | -11/Scrapyard | Discovered new exit (range 15) 61 | -11/Scrapyard | Entered Materials 307 | -10/Materials | Build established: Mutant 370 | -10/Materials | Discovered new exit (range 5) 376 | -10/Materials | Identified exit to Materials 377 | -10/Materials | Entered another Materials area 377 | -9/Materials | Evolved 2 slots: Utility x2 632 | -9/Materials | Discovered new exit (range 15) 674 | -9/Materials | Identified exit to Mines 678 | -9/Materials | Self-destructed Last Messages --------------- 00495_ K-01 Serf collects debris. 00498_ R-06 Scavenger collects Lgt. Armor Plating. 00498_ Y-45 Defender suffers critical hit (Burn). 00499_ K-01 Serf collects debris. 00502_ Y-45 Defender critical meltdown. 00502_ Beam Rifle melted. 00502_ Imp. Ion Engine melted. 00502_ Lgt. Treads melted. 00505_ K-01 Serf cleans the Scanalyzer. 00509_ K-01 Serf collects debris. 00517_ Acquired 52 matter. 00520_ K-01 Serf collects debris. 00526_ Acquired 12 matter. 00527_ K-01 Serf cleans the Nuclear Reactor. 00632_ EXIT=FOUND 00646_ K-01 Serf cleans the Nuclear Reactor. 00650_ Connecting with Terminal... 00651_ Terminal disabled. 00653_ K-01 Serf collects debris. 00674_ EXIT=IDENTIFIED: MINES Map ----- +----------------------------------------------------+ | | | | | | | | | | | | | | | | | | | | | | | | | | | | | | | | | | | ??????????????????????????????????????? | | ??????????????????????????????????????? | | ??????????????????????????????????????? | | ??????????????????????????????????????? | | ???????????#####??????????????????????? | | ??????????##"""##?????????????????????? | | ?????????##"!!!"##????????????????????? | | ?????????#"" ""#????????????????????? | | ???####??# @ #????????????????????? | | ?###""#??# > #????????????????????? | | ?#" #???# #????????????????????? | | ?## ##??# #????????????????????? | | ??# "#??## ##????????????????????? | | ??# ##???## ########???????????????? | | ??# #?????# # " " #???????????????? | | ###+#####??# + #???????????????? | | # "" #??# # """ #???????????????? | | # ""S #??# # """ !#???????????????? | | # "" #??# # """ #???????????????? | | # #??# # /#???????????????? | | # #??# ########???????????????? | | # #??# #??????????????????????? | | # #?## ##?????????????????????? | | # """ #?# #######+############??? | | # """ ### # #??? | | # """ + # #??? | | # ### # #??? | | #########?# ####### # / | | ????????#####+#####???# # #??? | | ????????# ##### + #??? | | ???????## " # = #??? | | ???????#% / ##### # ! #??? | | ???????## """ #???# # #??? | +----------------------------------------------------+ Best States ------------- Heat Dissipation 28 Energy Generation 10 Energy Capacity 250 Matter Stores 300 Matter Capacity 300 Sight Range 16 Robot Scan Range 14 Terrain Scan Density 10 Armor Coverage 150 Resistance: KI 20 Evasion (%) 55 Item Schematics ----------------- None Robot Schematics ------------------ None Fabricated ------------ Nothing Repaired ---------- Nothing Alien Tech Used ----------------- None Achievements -------------- None Challenges ------------ None Game ------ Seed MeleeDecoderArchive Manual? 0 Play Time 00:09:49 Cumulative 222.1 hours Start 2025.06.22 @ 14:56:02 End 2025.06.22 @ 15:04:55 Sessions 1 Manual Loads 0 Difficulty Rogue Special Mode None Game No. 385 Rogue 385 Adventurer 0 Explorer 0 Win Type - Total 1 Types 1/0/0/0/0/0/0/0/0/0 Lore% 29 Gallery% 47 Achievement% 39 Wizard Run 0 Options --------- Layout 1 ASCII 0 Keyboard 1 Movement Vi Keybinds 0 Fullscreen 0 Font 24/Smallcaps Map View 59x39 Zoom Use 0% Tactical HUD 1 Map Filters NONE Filters NONE Steam 1 RUN: 55ab9765-9bd8-4177-bd76-d251d886d78a